[Event "Fagernes GM Open Autumn 2024"]
[Site "Fagernes"]
[Date "2024.10.10"]
[Round "6.29"]
[White "Rustan, Elias Buschmann"]
[Black "Sorgjerd, Jan"]
[Result "1/2-1/2"]
[ECO "B99"]
[WhiteElo "1941"]
[BlackElo "1966"]
[Annotator "RC"]
[PlyCount "93"]
[EventDate "2024.10.03"]
[EventType "swiss"]
[EventCountry "NOR"]
[SourceTitle "playchess.com"]
[Source "ChessBase"]
[SourceQuality "1"]
[TimeControl "40/6000:2400+30"]

1. e4 {[%emt 0:00:00]} c5 {[%emt 0:00:00]} 2. Nf3 {[%emt 0:00:00]} d6 {[%emt 0:00:00]} 3. d4 {[%emt 0:00:00]} cxd4 {[%emt 0:00:00]} 4. Nxd4 {[%emt 0:00:00]} Nf6 {[%emt 0:00:00]} 5. Nc3 {[%emt 0:00:00]} a6 {[%emt 0:00:00]} 6. Bg5 {[%emt 0:00:00]} e6 {[%emt 0:00:00]} 7. f4 {[%emt 0:00:00]} Be7 {[%emt 0:00:00]} 8. Qf3 {[%emt 0:00:00]} Qc7 {[%emt 0:00:00]} 9. O-O-O {[%emt 0:00:00]} Nbd7 {[%emt 0:00:00]} 10. g4 {[%emt 0:00:00]} b5 {[%emt 0:00:00]} 11. Bxf6 {[%emt 0:00:00]} Nxf6 {[%emt 0:00:00]} 12. g5 {[%emt 0:00:00]} Nd7 {[%emt 0:00:00]} 13. f5 {[%emt 0:00:00]} Nc5 {[%emt 0:00:00]} 14. f6 {[%emt 0:00:00]} gxf6 {[%emt 0:00:00]} 15. gxf6 {[%emt 0:00:00]} Bf8 {[%emt 0:00:00]} 16. Rg1 {[%emt 0:00:00]} b4 {[%emt 0:00:48]} 17. Nd5 {[%emt 0:00:00]} exd5 {[%emt 0:00:15]} 18. exd5 {[%emt 0:00:00]} Bd7 {[%emt 0:00:00]} 19. Rg7 {[%emt 0:02:40]} O-O-O {[%emt 0:19:11]} 20. Rxf7 {[%emt 0:01:53]} Bh6+ {[%emt 0:15:29]} 21. Kb1 {[%emt 0:00:00]} Rdf8 {[%emt 0:01:07]} 22. Re7 {[%emt 0:26:42]} Bg5 {[%emt 0:14:19]} 23. Ne6 {[%emt 0:22:35]} Rxf6 {[%emt 0:02:07]} 24. Qh5 {[%emt 0:25:56]} Rxe6 {[%emt 0:15:53]} 25. Rxd7 {[%emt 0:03:34]} Qxd7 {[%emt 0:01:43]} 26. dxe6 {[%emt 0:02:43]} Qe7 {[%emt 0:00:38]} 27. Qf3 {[%emt 0:01:20]} Kc7 {[%emt 0:07:07]} 28. Bg2 {[%emt 0:00:47]} Qe8 {[%emt 0:00:00]} 29. Rxd6 {[%emt 0:01:29]} Kxd6 {[%emt 0:01:11]} 30. Qd5+ {[%emt 0:00:00]} Ke7 {[%emt 0:02:15]} 31. Qxg5+ {[%emt 0:00:00]} Kxe6 {[%emt 0:01:11]} 32. Qxc5 {[%emt 0:00:04]} Qe7 {[%emt 0:11:37]} 33. Qc4+ {[%emt 0:01:31]} Kf6 {[%emt 0:01:09]} 34. Qh4+ {[%emt 0:00:57]} Kf7 {[%emt 0:00:54]} 35. Bd5+ {[%emt 0:00:13]} Kf8 {[%emt 0:00:23]} 36. Qf4+ {[%emt 0:01:23]} Kg7 {[%emt 0:00:00]} 37. Qg4+ {[%emt 0:00:38]} Kh6 {[%emt 0:00:14]} 38. Qh3+ {[%emt 0:00:57]} Kg7 {[%emt 0:00:00]} 39. Qg3+ {[%emt 0:00:04]} Kh6 {[%emt 0:00:00]} 40. Qh3+ {[%emt 0:00:52]} Kg7 {[%emt 0:00:00]} 41. Qg2+ {[%emt 0:43:30]} Kh6 {[%emt 0:03:05]} 42. Qh3+ {[%emt 0:00:00]} Kg7 {[%emt 0:00:29]} 43. Qg4+ {[%emt 0:00:00]} Kh6 {[%emt 0:04:14]} 44. Qf4+ {[%emt 0:00:00]} Kg7 {[%emt 0:03:12]} 45. Qg4+ {[%emt 0:00:00]} Kh6 {[%emt 0:00:29]} 46. Qf4+ {[%emt 0:00:00]} Kg7 {[%emt 0:00:06]} 47. Qg4+ {[%emt 0:00:34]} 1/2-1/2

[Event "Fagernes GM Open Autumn 2024"]
[Site "Fagernes"]
[Date "2024.10.10"]
[Round "6.30"]
[White "Simonsen, David Mindestrommen"]
[Black "Juodziukynas, Aidas"]
[Result "1-0"]
[ECO "B68"]
[WhiteElo "1930"]
[BlackElo "1917"]
[Annotator "RC"]
[PlyCount "45"]
[EventDate "2024.10.03"]
[EventType "swiss"]
[EventCountry "NOR"]
[SourceTitle "playchess.com"]
[Source "ChessBase"]
[SourceQuality "1"]
[TimeControl "40/6000:2400+30"]

1. e4 {[%emt 0:00:00]} c5 {[%emt 0:00:00]} 2. Nf3 {[%emt 0:00:00]} d6 {[%emt 0:00:00]} 3. d4 {[%emt 0:00:00]} cxd4 {[%emt 0:00:00]} 4. Nxd4 {[%emt 0:00:00]} Nf6 {[%emt 0:00:00]} 5. Nc3 {[%emt 0:00:00]} Nc6 {[%emt 0:00:00]} 6. Bg5 {[%emt 0:00:00]} e6 {[%emt 0:00:00]} 7. Qd2 {[%emt 0:00:00]} a6 {[%emt 0:03:34]} 8. O-O-O {[%emt 0:00:00]} Be7 {[%emt 0:00:00]} 9. f4 {[%emt 0:00:00]} Bd7 {[%emt 0:00:45]} 10. Nf3 {[%emt 0:02:13]} Qc7 {[%emt 0:04:47]} 11. e5 {[%emt 0:12:51]} dxe5 {[%emt 0:00:37]} 12. fxe5 {[%emt 0:05:22]} Ng4 {[%emt 0:03:31]} 13. Bxe7 {[%emt 0:06:34]} Nxe7 {[%emt 0:00:00]} 14. Ne4 {[%emt 0:00:34]} Nf5 {[%emt 0:00:00]} 15. h3 {[%emt 0:07:35]} Nge3 {[%emt 0:01:43]} 16. g4 {[%emt 0:00:37]} Nxf1 {[%emt 0:00:15]} 17. Rhxf1 {[%emt 0:01:14]} Bc6 {[%emt 0:00:26]} 18. Nfg5 {[%emt 0:09:04]} Bxe4 {[%emt 0:00:56]} 19. Nxe4 {[%emt 0:00:02]} Nh6 {[%emt 0:00:03]} 20. Nd6+ {[%emt 0:04:11]} Kf8 {[%emt 0:00:00]} 21. Nxf7 {[%emt 0:05:02]} Nxf7 {[%emt 0:00:00]} 22. Qd7 {[%emt 0:00:00]} Qxd7 {[%emt 0:00:08]} 23. Rxd7 {[%emt 0:00:00]} 1-0

[Event "Fagernes GM Open Autumn 2024"]
[Site "Fagernes"]
[Date "2024.10.11"]
[Round "7.1"]
[White "Jumabayev, Rinat"]
[Black "Willow, Jonah B"]
[Result "1/2-1/2"]
[ECO "B44"]
[WhiteElo "2577"]
[BlackElo "2420"]
[Annotator "TA"]
[PlyCount "67"]
[EventDate "2024.10.03"]
[EventType "swiss"]
[EventCountry "NOR"]
[SourceTitle "playchess.com"]
[Source "ChessBase"]
[SourceQuality "1"]
[TimeControl "40/6000:2400+30"]

{[%evp 18,67,14,0,0,0,7,-18,-11,-21,-17,-32,-22,-39,-34,-34,0,0,27,27,18,23,18,17,93,84,82,100,101,86,83,80,72,75,92,87,85,86,99,0,42,0,85,85,86,86,126,0,0,0,0,0]} 1. c4 {[%emt 0:01:03]} c5 {[%emt 0:00:00]} 2. Nf3 {[%emt 0:01:08]} Nf6 {[%emt 0:00:00]} 3. Nc3 {[%emt 0:02:27]} Nc6 {[%emt 0:00:00]} 4. d4 {[%emt 0:03:43]} cxd4 {[%emt 0:00:00]} 5. Nxd4 {[%emt 0:00:00]} e6 {[%emt 0:00:00]} 6. e4 {[%emt 0:01:12]} Bb4 {[%emt 0:00:12]} 7. Nxc6 {[%emt 0:00:53]} bxc6 {[%emt 0:00:00]} 8. Bd3 {[%emt 0:00:29]} e5 {[%emt 0:00:00]} 9. O-O {[%emt 0:12:29]} O-O {[%emt 0:00:00]} 10. Qc2 {[%emt 0:01:38]} Bc5 {[%emt 0:11:52]} 11. Rb1 {[%emt 0:18:47]} a5 {[%emt 0:11:51]} 12. Bg5 {[%emt 0:03:54]} h6 {[%emt 0:01:03]} 13. Bh4 {[%emt 0:00:00]} d6 {[%emt 0:04:08]} 14. Be2 {[%emt 0:00:00]} Bd4 {[%emt 0:05:24]} (14... g5 $5 15. Bg3 $8 Be6 $15) 15. Rbd1 {[%emt 0:02:51]} g5 {[%emt 0:06:02]} 16. Bg3 {[%emt 0:00:23][%cal Oc4c5]} Nd7 {[%emt 0:00:02]} 17. Bg4 {[%emt 0:13:22]} Nc5 {[%emt 0:04:07]} 18. Bxc8 {[%emt 0:02:42]} Rxc8 {[%emt 0:00:34]} 19. Ne2 {[%emt 0:00:42]} Ne6 {[%emt 0:02:25]} 20. c5 {[%emt 0:04:18]} f6 {[%emt 0:17:21]} (20... Nxc5 $2 21. Nxd4 exd4 22. Rxd4 $18) (20... dxc5 $6 21. Bxe5 Re8 22. Kh1 $16) (20... d5 $11 {keeps the balance.}) 21. Nxd4 {[%emt 0:03:22]} Nxd4 {[%emt 0:00:00] [#]} 22. Rxd4 {[%emt 0:00:00]} exd4 {[%emt 0:00:00]} 23. Bxd6 {[%emt 0:00:00]} Rf7 {[%emt 0:04:47]} 24. e5 {[%emt 0:15:49]} fxe5 {[%emt 0:00:59] White must now prevent ...Qf6.} 25. Qg6+ {[%emt 0:00:00]} Rg7 {[%emt 0:00:00]} 26. Qe6+ {[%emt 0:02:19][%mdl 1024] White has strong compensation.} (26. Qxh6 Qe8 $11) 26... Kh7 {[%emt 0:00:00] [#]} 27. Qf5+ $1 {[%emt 0:00:00]} (27. Bxe5 $6 Qd7 28. Qb3 d3 $11 (28... Rg6 29. Bxd4 Rd8 30. Bc3 $14)) 27... Kg8 {[%emt 0:01:05]} 28. Qe6+ {[%emt 0:00:00]} ({Better is} 28. Bxe5 $16 Qd7 29. Qf6) 28... Kh7 $14 {[%emt 0:00:00]} 29. Qf5+ {[%emt 0:04:30]} Kg8 $1 {[%emt 0:00:00]} 30. Bxe5 {[%emt 0:00:22]} Qd7 {[%emt 0:00:00]} 31. Qd3 {[%emt 0:00:31] White has more active pieces. Black is weak on the dark squares} Qd5 {[%emt 0:00:00]} 32. f4 {[%emt 0:00:14]} (32. Qxd4 Qxd4 33. Bxd4 Rd7 $19) ({Reject} 32. Bxd4 $6 Rd8 33. Rd1 Qe6 $11) ({White should play} 32. Bxg7 $16 {Hoping for Qg6.} Kxg7 33. Qa6) 32... Rf8 $11 {[%emt 0:04:35]} 33. Bxg7 {[%emt 0:00:16]} (33. Qxd4 Qxd4+ 34. Bxd4 Rgf7 $19) 33... Kxg7 {[%emt 0:00:00]} 34. fxg5 {[%emt 0:00:02] Weighted Error Value: White=0.20 (precise) /Black=0.11 (very precise) .  Mistake:       	White=2     	Black=1      Inaccurate:     	---       	Black=3      OK:         	White=10    	Black=10     Best:        	White=1     	Black=3      Strong:       	White=1     	Black=1      Brilliant:      	White=1     	---} 1/2-1/2

[Event "Fagernes GM Open Autumn 2024"]
[Site "Fagernes"]
[Date "2024.10.11"]
[Round "7.2"]
[White "Das, Sayantan"]
[Black "Kvaloy, Aksel Bu"]
[Result "1-0"]
[ECO "C90"]
[WhiteElo "2471"]
[BlackElo "2484"]
[Annotator "TA"]
[PlyCount "67"]
[EventDate "2024.10.03"]
[EventType "swiss"]
[EventCountry "NOR"]
[SourceTitle "playchess.com"]
[Source "ChessBase"]
[SourceQuality "1"]
[TimeControl "40/6000:2400+30"]

{[%evp 26,67,1,16,21,9,21,0,29,50,25,33,72,67,60,54,168,143,160,154,292,198,374,378,551,552,550,551,627,589,914,761,814,783,803,789,794,811,899,916,1345,1343,1199,1104]} 1. e4 {[%emt 0:02:19]} e5 {[%emt 0:00:11]} 2. Nf3 {[%emt 0:00:00]} Nc6 {[%emt 0:00:00]} 3. Bb5 {[%emt 0:00:00][%cal Bf1b5,Bb5a4,Ba4b3][%mdl 32]} a6 {[%emt 0:00:00]} 4. Ba4 {[%emt 0:00:00]} Nf6 {[%emt 0:00:00]} 5. O-O {[%emt 0:00:00]} Be7 {[%emt 0:00:00]} 6. d3 {[%emt 0:00:00]} b5 {[%emt 0:00:00]} 7. Bb3 {[%emt 0:00:00]} d6 {[%emt 0:00:00]} 8. c3 {[%emt 0:00:00]} Na5 {[%emt 0:04:15]} 9. Bc2 {[%emt 0:00:00]} c5 {[%emt 0:00:33]} 10. Nbd2 {[%emt 0:00:00]} O-O {[%emt 0:00:44]} 11. Re1 {[%emt 0:00:00]} Re8 {[%emt 0:01:08]} 12. Nf1 {[%emt 0:00:00]} h6 {[%emt 0:05:24]} 13. Ng3 {[%emt 0:00:00]} Bf8 {[%emt 0:00:17]} 14. d4 {[%emt 0:05:44]} cxd4 {[%emt 0:02:27]} 15. cxd4 {[%emt 0:00:45]} exd4 {[%emt 0:00:35]} 16. Nxd4 {[%emt 0:04:11]} g6 {[%emt 0:00:47] The position is equal.} 17. b3 {[%emt 0:09:48]} Bg7 {[%emt 0:06:55]} 18. Bb2 {[%emt 0:01:33]} Bb7 {[%emt 0:00:12]} 19. Qd2 {[%emt 0:01:21][%cal Od4f5]} Rc8 {[%emt 0:00:33]} 20. Rad1 {[%emt 0:02:34][%cal Og3f5]} Qb6 {[%emt 0:07:46] [#]} (20... Nc6 $14) 21. Ndf5 $1 {[%emt 0:14:22][%mdl 512]} gxf5 {[%emt 0:09:40]} 22. Nxf5 {[%emt 0:00:00]} Qc5 {[%emt 0:04:25]} (22... Re6 $16 {is a better defense.}) 23. Bb1 {[%emt 0:14:55]} (23. Nxh6+ Bxh6 24. Qxh6 (24. Qxa5 $2 Qxc2 25. Qb6 Rxe4 $19) 24... Qxf2+ 25. Kh1 Bxe4 (25... Rxc2 $2 26. Qg5+ Kf8 27. Bxf6 $16) 26. Bxe4 (26. Qxf6 $2 Bxg2#) 26... Qxb2 $11) 23... Nc6 {[%emt 0:01:59] Wards off Bd4} (23... Nxe4 24. Rxe4 (24. Qxa5 $2 Qxf2+ 25. Kh1 Ng3+ 26. hxg3 Qxg2#) (24. Bxe4 Rxe4 25. Nxg7 Qc2 $16) 24... Bxe4 25. Nxg7 Qg5 26. Qxg5 (26. Qxa5 $2 Qxg2#) 26... hxg5) 24. Rc1 $18 {[%emt 0:07:43]} (24. Nxh6+ Bxh6 25. Qxh6 Qxf2+ 26. Kxf2 Ng4+ 27. Kg1 Nxh6 $17) 24... Qb4 {[%emt 0:08:03]} (24... Qb6 {was worth a try.} 25. Rc3 (25. Nxh6+ Bxh6 26. Qxh6 Qxf2+ 27. Kxf2 Ng4+ 28. Ke2 Nxh6 $11) (25. Nxd6 Rcd8 $11) 25... Ne5) 25. Bc3 {[%emt 0:02:06] White is clearly winning.} (25. Qxd6 Re6 (25... Nxe4 $2 26. Qxb4 Nxb4 27. Rxc8 $18) (25... Qxd6 26. Nxd6 Nxe4 27. Rxe4 $14) 26. Qxb4 Nxb4 27. Rxc8+ Bxc8 $14) 25... Qa3 {[%emt 0:02:25]} 26. Nxh6+ {[%emt 0:01:08]} (26. Qxd6 Qxd6 27. Nxd6 Ba8 28. Nxc8 Rxc8 $18) 26... Kf8 {[%emt 0:01:48]} 27. Nf5 {[%emt 0:01:35][%cal Od2g5] [#] Qg5! is the strong threat.} Ne7 {[%emt 0:02:13]} 28. Bb2 {[%emt 0:03:42]} (28. Nxd6 Rxc3 29. Rxc3 Nfd5 30. exd5 (30. Nxb7 Nxc3 31. f4 Qb4 $17) (30. Nxe8 Bxc3 31. Qc1 Qxc1 $15) 30... Qxd6 $11) 28... Rxc1 {[%emt 0:00:00]} 29. Rxc1 {[%emt 0:00:00]} Qxb2 {[%emt 0:01:12]} 30. Qxb2 {[%emt 0:00:00]} Nxf5 {[%emt 0:00:00]} 31. exf5 {[%emt 0:00:00]} Ne4 {[%emt 0:00:01]} 32. Qa3 {[%emt 0:00:28]} Nc3 {[%emt 0:01:11]} 33. Qxd6+ {[%emt 0:00:29]} Kg8 {[%emt 0:00:00]} 34. Bd3 {[%emt 0:00:08] Weighted Error Value: White=0.17 (very precise) /Black=0.69.  Mistake:       	---       	Black=4      Inaccurate:     	White=1     	Black=3      OK:         	White=6     	Black=3      Best:        	White=1     	---} 1-0

[Event "Fagernes GM Open Autumn 2024"]
[Site "Fagernes"]
[Date "2024.10.11"]
[Round "7.3"]
[White "Ghasi, Ameet K"]
[Black "Bazakutsa, Svyatoslav"]
[Result "1/2-1/2"]
[ECO "E63"]
[WhiteElo "2503"]
[BlackElo "2483"]
[Annotator "TA"]
[PlyCount "94"]
[EventDate "2024.10.03"]
[EventType "swiss"]
[EventCountry "NOR"]
[SourceTitle "playchess.com"]
[Source "ChessBase"]
[SourceQuality "1"]
[TimeControl "40/6000:2400+30"]

{[%evp 19,94,22,19,19,18,16,31,27,32,25,27,19,25,33,30,22,22,24,32,37,43,31,53,56,53,41,56,23,58,61,69,63,76,72,81,90,136,123,135,114,123,42,65,70,61,73,73,73,171,152,263,247,306,271,260,6,9,0,0,0,0,0,0,0,0,0,0,0,0,0,0,0,0,0,0,0,0]} 1. c4 {[%emt 0:01:01]} Nf6 {[%emt 0:05:24]} 2. Nf3 {[%emt 0:00:28]} g6 {[%emt 0:00:00]} 3. g3 {[%emt 0:00:00]} Bg7 {[%emt 0:00:00]} 4. Bg2 {[%emt 0:00:00]} O-O {[%emt 0:00:00]} 5. Nc3 {[%emt 0:00:00]} Nc6 {[%emt 0:00:36]} 6. d4 {[%emt 0:03:34][%cal Bd2d4,Bd4d5][%mdl 32]} d6 {[%emt 0:00:57]} 7. d5 {[%emt 0:00:31]} Na5 {[%emt 0:00:00]} 8. b3 {[%emt 0:00:13]} c5 {[%emt 0:00:00]} 9. Bb2 {[%emt 0:00:00]} a6 {[%emt 0:00:00]} 10. O-O {[%emt 0:01:48]} Rb8 {[%emt 0:00:00]} 11. Nd2 {[%emt 0:00:00]} b5 {[%emt 0:00:00]} 12. Qc1 {[%emt 0:00:00]} e5 {[%emt 0:00:00]} 13. dxe6 {[%emt 0:06:07] White is slightly better.} fxe6 {[%emt 0:00:00]} 14. Qc2 {[%emt 0:12:14]} Qe7 {[%emt 0:07:48]} 15. Nce4 {[%emt 0:30:27]} bxc4 {[%emt 0:15:20]} 16. Bxf6 {[%emt 0:02:16]} (16. bxc4 $2 {perishes.} Rxb2 17. Qd3 Nxe4 18. Nxe4 Bb7 $19) 16... Bxf6 {[%emt 0:00:44]} 17. Nxf6+ {[%emt 0:00:00]} Qxf6 {[%emt 0:00:53]} 18. Nxc4 {[%emt 0:00:22]} Nxc4 {[%emt 0:02:23]} 19. Qxc4 {[%emt 0:00:00]} Rb6 {[%emt 0:08:31]} 20. Qc2 {[%emt 0:07:20]} Bb7 {[%emt 0:16:24]} 21. Bxb7 {[%emt 0:07:52]} Rxb7 {[%emt 0:00:00]} 22. Rad1 {[%emt 0:00:20]} Qe7 {[%emt 0:06:50]} 23. Rd3 {[%emt 0:00:58]} Rc8 {[%emt 0:04:01]} 24. Rfd1 {[%emt 0:01:41]} Rc6 {[%emt 0:00:17]} 25. h4 {[%emt 0:01:02]} Rbc7 {[%emt 0:05:33]} 26. e4 {[%emt 0:00:55]} Rb7 {[%emt 0:03:27]} 27. Qd2 {[%emt 0:02:11]} Rbb6 {[%emt 0:02:05]} ({Better is} 27... Rd7) 28. a4 $36 {[%emt 0:05:33][%cal Ba2a4,Ba4a5][%mdl 2080] White is really pushing.} Kg7 {[%emt 0:06:31]} 29. a5 {[%emt 0:00:50]} Rb5 {[%emt 0:00:00]} 30. Rxd6 {[%emt 0:00:13]} (30. f4 $16) 30... Rxd6 $14 {[%emt 0:02:53]} 31. Qxd6 {[%emt 0:00:00]} Qxd6 {[%emt 0:00:00]} 32. Rxd6 $16 {[%emt 0:00:00][%mdl 4096] Endgame. KR-KR} Kf6 {[%emt 0:00:00]} 33. Rxa6 {[%emt 0:00:10]} Rxb3 {[%emt 0:00:00]} (33... Ke5 $16 {is a better defense.}) 34. Rc6 $18 {[%emt 0:01:17]} Rb5 {[%emt 0:01:27]} (34... Rc3 $16 35. a6 c4) 35. a6 {[%emt 0:02:20]} Ra5 {[%emt 0:06:45] [#]} 36. f4 {[%emt 0:02:46]} Ra4 {[%emt 0:00:00] [#]} 37. Rxc5 $2 {[%emt 0:04:28]} (37. g4 $1 $18) 37... Rxa6 $11 {[%emt 0:00:00] The position is equal.} 38. Kg2 {[%emt 0:00:00]} Ra4 {[%emt 0:00:15]} 39. Kf3 {[%emt 0:00:13] Hoping for e5+.} Ra3+ {[%emt 0:00:06]} 40. Kf2 {[%emt 0:00:01]} Ra2+ {[%emt 0:00:12]} 41. Kf3 {[%emt 0:40:44] Threatens to win with e5+.} Ra3+ {[%emt 0:04:33]} 42. Kg2 {[%emt 0:00:00]} Ra2+ {[%emt 0:08:03]} 43. Kh3 {[%emt 0:00:00]} Re2 {[%emt 0:00:55]} 44. Rc7 {[%emt 0:00:00] aiming for e5+.} h5 {[%emt 0:01:52]} 45. Rc4 {[%emt 0:00:00]} Rf2 {[%emt 0:01:20]} 46. Rc8 {[%emt 0:00:00]} Re2 {[%emt 0:00:21]} 47. Rc4 {[%emt 0:00:00]} Rf2 {[%emt 0:00:06] Weighted Error Value: White=0.20 (precise) /Black=0.14 (very precise) .  Missed win:     	White=1     	---        Mistake:       	White=1     	Black=3      Inaccurate:     	White=1     	Black=1      OK:         	White=9     	Black=10     Best:        	White=3     	Black=2} 1/2-1/2

[Event "Fagernes GM Open Autumn 2024"]
[Site "Fagernes"]
[Date "2024.10.11"]
[Round "7.4"]
[White "Raja Rithvik R"]
[Black "Stremavicius, Titas"]
[Result "1/2-1/2"]
[ECO "D33"]
[WhiteElo "2514"]
[BlackElo "2541"]
[Annotator "TA"]
[PlyCount "45"]
[EventDate "2024.10.03"]
[EventType "swiss"]
[EventCountry "NOR"]
[SourceTitle "playchess.com"]
[Source "ChessBase"]
[SourceQuality "1"]
[TimeControl "40/6000:2400+30"]

{[%evp 16,45,28,29,37,35,46,50,50,53,40,47,45,53,53,49,39,38,42,34,44,10,5,2,4,2,4,7,0,0,2,0]} 1. d4 {[%emt 0:00:25]} d5 {[%emt 0:00:00]} 2. c4 {[%emt 0:00:00]} e6 {[%emt 0:00:00]} 3. Nc3 {[%emt 0:00:18]} c5 {[%emt 0:00:00]} 4. cxd5 {[%emt 0:00:36]} exd5 {[%emt 0:00:00]} 5. Nf3 {[%emt 0:00:00][%cal Bg1f3,Bf3d4,Bd4b3][%mdl 32]} Nf6 {[%emt 0:00:00]} 6. g3 {[%emt 0:05:21]} Nc6 {[%emt 0:00:00]} 7. Bg2 {[%emt 0:00:00]} cxd4 {[%emt 0:00:00]} 8. Nxd4 {[%emt 0:00:00]} Bc5 {[%emt 0:00:00]} 9. Nb3 {[%emt 0:10:43][%csl LRc5,LRd5]} Bb6 {[%emt 0:00:00]} 10. O-O {[%emt 0:00:00][%cal Oc1g5]} d4 {[%emt 0:00:00]} 11. Na4 {[%emt 0:00:00]} O-O {[%emt 0:00:00] White is slightly better.} 12. Bg5 {[%emt 0:00:00]} Re8 {[%emt 0:00:00]} 13. Re1 {[%emt 0:07:40]} h6 {[%emt 0:00:00]} 14. Nxb6 {[%emt 0:00:08]} axb6 {[%emt 0:00:00]} 15. Bxc6 {[%emt 0:00:00]} bxc6 {[%emt 0:00:00]} 16. Bxf6 {[%emt 0:00:00]} Qxf6 {[%emt 0:00:00]} 17. Qxd4 {[%emt 0:00:00]} Qd8 {[%emt 0:00:00]} 18. Qxd8 {[%emt 0:10:27]} Rxd8 {[%emt 0:00:00] The position is equal.} 19. Rec1 {[%emt 0:00:09]} Be6 {[%emt 0:03:54]} 20. Kf1 {[%emt 0:01:23]} Ra4 {[%emt 0:06:28]} 21. Rc3 {[%emt 0:01:24]} c5 {[%emt 0:03:30]} 22. Ke1 {[%emt 0:00:22]} Rb4 {[%emt 0:00:00]} 23. Rc2 {[%emt 0:06:50] Weighted Error Value: White=0.03 (flawless) /Black=0.02 (flawless) .  Inaccurate:     	White=1     	---        OK:         	White=12    	Black=7      Best:        	---       	Black=1} 1/2-1/2